fUSD/lending_fUSD_20260505
["ID","MTS","AMOUNT","RATE_DAILY","PERIOD"]
[421579868,1777913449000,-585.6,0.00026296,2]
[421579875,1777913449000,-335.381476,0.000264,2]
[421579874,1777913449000,-335.381476,0.000264,2]
[421579876,1777913449000,-151.0,0.000264,2]
[421579877,1777913449000,-151.0,0.000264,2]
[421579883,1777913449000,-507.0,0.00027137,2]
[421579878,1777913449000,-151.0,0.000264,2]
[421579880,1777913449000,-590.8962446,0.00026817,2]
[421579879,1777913449000,-212.7785192,0.00026817,2]
[421579885,1777913449000,-426.19876664,0.00027198,2]
[421579886,1777913449000,-150.0,0.00027202,2]
[421579891,1777913449000,-151.0,0.00027397,2]
[421579884,1777913449000,-500.0,0.00027198,2]
[421579893,1777913449000,-151.0,0.00027397,2]
[421579888,1777913449000,-151.0,0.00027222,2]
[421579889,1777913449000,-151.0,0.00027222,2]
[421579892,1777913449000,-155.30302845,0.00027397,2]
[421579890,1777913449000,-151.0,0.00027397,2]
[421579897,1777913449000,-190.910721,0.00027397,2]
[421579895,1777913449000,-500.0,0.00027397,2]
[421579881,1777913449000,-546.39824526,0.0002685,2]
[421579882,1777913449000,-177.0,0.0002696,3]
[421579899,1777913449000,-190.910721,0.00027397,2]
[421579887,1777913449000,-500.0,0.00027202,2]
[421579896,1777913449000,-380.12,0.00027397,2]
[421579933,1777913450000,-500.0,0.00027746,5]
[421579930,1777913450000,-165.53,0.000274,2]
[421579940,1777913450000,-430.9482059,0.000279,2]
[421579932,1777913450000,-165.53,0.000274,2]
[421579934,1777913450000,-250.0,0.0002775,5]
[421579935,1777913450000,-1000.0,0.0002775,5]
[421579937,1777913450000,-500.0,0.000278,10]
[421579936,1777913450000,-151.0,0.00027797,7]
[421579947,1777913450000,-170.60970054,0.00027999,2]
[421579939,1777913450000,-500.0,0.000279,10]
[421579931,1777913450000,-165.53,0.000274,2]
[421579941,1777913450000,-151.0,0.00027979,7]
[421579945,1777913450000,-246.694028,0.00027982,7]
[421579953,1777913450000,-484.66436311,0.00028,30]
[421579952,1777913450000,-2261.95729974,0.00028,30]
[421579950,1777913450000,-183.0,0.00023,2]
[421579948,1777913450000,-1217642.29575996,0.00028,30]
[421579951,1777913450000,-183.0,0.00024,2]
[421579943,1777913450000,-151.0,0.00027982,7]
[421579942,1777913450000,-14879.3359191,0.00027982,2]
[421579946,1777913450000,-262.03149038,0.0002799,2]
[421579944,1777913450000,-151.0,0.00027982,7]
[421579949,1777913450000,-7400.57320438,0.00028,30]
[421579938,1777913450000,-759.0,0.00027896,5]
[421579956,1777913451000,-166.17295304,0.00028,30]
[421579957,1777913451000,-5823.11642372,0.00028,30]
[421579955,1777913451000,-802.61566036,0.00028,30]
[421579954,1777913451000,-798.15726852,0.00028,30]
[421579958,1777913452000,-4976.42433161,0.00028,30]
[421579959,1777913458000,688.621302,0.00023439,120]
[421579960,1777913677000,258.232988,0.000294,120]
[421579963,1777913783000,-153.79,0.0001271,2]
[421579961,1777913783000,-153.79,0.00011439,2]
[421579964,1777913783000,-153.79,0.00013981,2]
[421579965,1777913783000,-150.0,0.00015068,2]
[421579962,1777913783000,-250.0,0.00012583,2]
[421579970,1777913798000,-243.21,0.00015616,2]
[421579969,1777913798000,-300.0,0.00015342,2]
[421579968,1777913798000,-153.79,0.00015252,2]
[421579967,1777913798000,-151.0,0.0001516,2]
[421579966,1777913798000,-152.0,0.00015091,2]
[421579971,1777913844000,240.17,0.00030137,120]
[421579972,1777913877000,-250.0,0.00014,2]
[421579973,1777913890000,-151.0,0.00015109,2]
[421579974,1777913890000,-300.0,0.00015248,2]
[421579975,1777913890000,-97.0,0.00015248,2]
[421579978,1777914059000,-203.0,0.00015248,2]
[421579979,1777914059000,-152.0,0.00015248,2]
[421579977,1777914059000,-210.38009069,0.00015148,2]
[421579981,1777914059000,-150.0,0.00015248,2]
[421579982,1777914059000,-151.0,0.00015248,2]
[421579980,1777914059000,-150.0,0.00015248,2]
[421579983,1777914059000,-153.0,0.00015248,2]
[421579987,1777914059000,-151.0,0.00015248,2]
[421579984,1777914059000,-152.0,0.00015248,2]
[421579986,1777914059000,-151.0,0.00015248,2]
[421579989,1777914059000,-151.0,0.00015248,2]
[421579988,1777914059000,-151.0,0.00015248,2]
[421579990,1777914059000,-153.0,0.00015248,2]
[421579991,1777914059000,-152.0,0.00015248,2]
[421579992,1777914059000,-150.0,0.00015387,2]
[421579993,1777914059000,-205.57782508,0.00015586,2]
[421579994,1777914059000,-300.0,0.00015629,2]
[421579985,1777914059000,-150.0,0.00015248,2]
[421580005,1777914060000,-150.0,0.00016619,2]
[421580000,1777914060000,-2500.0,0.00016619,2]
[421580002,1777914060000,-2500.0,0.00016619,2]
[421579999,1777914060000,-153.79,0.00016523,2]
[421579996,1777914060000,-300.0,0.00016,2]
[421579998,1777914060000,-300.0,0.00016522,2]
[421579997,1777914060000,-292.8,0.00016438,2]
[421579995,1777914060000,-293.21801722,0.00015629,2]
[421580007,1777914060000,-300.0,0.00016619,2]
[421580001,1777914060000,-2500.0,0.00016619,2]
[421580004,1777914060000,-2500.0,0.00016619,2]
[421580003,1777914060000,-2500.0,0.00016619,2]
[421580008,1777914060000,-153.79,0.00017794,2]
[421580006,1777914060000,-300.0,0.00016619,2]
[421580015,1777914060000,-448.0,0.0002,2]
[421580018,1777914060000,-469.0,0.0002,2]
[421580017,1777914060000,-168.0,0.0002,2]
[421580014,1777914060000,-155.0,0.0002,2]
[421580016,1777914060000,-158.0,0.0002,2]
[421580011,1777914060000,-153.79,0.00019064,2]
[421580013,1777914060000,-151.0,0.0002,2]
[421580010,1777914060000,-292.8,0.0001841,2]
[421580009,1777914060000,-420.0,0.00018054,2]
[421580012,1777914060000,-587.0,0.00019729,2]
[421580035,1777914084000,-160.0,0.00021287,2]
[421580033,1777914084000,-265.56783743,0.000212,2]
[421580034,1777914084000,-162.48539177,0.00021287,2]
[421580031,1777914084000,-168.0,0.00021,2]
[421580032,1777914084000,-469.0,0.00021,2]
[421580030,1777914084000,-158.0,0.00021,2]
[421580027,1777914084000,-151.0,0.00021,2]
[421580023,1777914084000,-292.8,0.00020381,2]
[421580026,1777914084000,-2500.0,0.00020841,2]
[421580025,1777914084000,-2500.0,0.00020841,2]
[421580024,1777914084000,-2500.0,0.00020841,2]
[421580022,1777914084000,-2500.0,0.00020358,2]
[421580020,1777914084000,-150.0,0.00020343,2]
[421580021,1777914084000,-404.0,0.00020357,2]
[421580019,1777914084000,-153.79,0.00020335,2]
[421580038,1777914084000,-155.0,0.00022,2]
[421580028,1777914084000,-155.0,0.00021,2]
[421580036,1777914084000,-153.79,0.00021606,2]
[421580029,1777914084000,-448.0,0.00021,2]
[421580039,1777914084000,-448.0,0.00022,2]
[421580037,1777914084000,-162.0,0.00022,2]
[421580056,1777914084000,-168.0,0.00023,2]
[421580057,1777914084000,-469.0,0.00023,2]
[421580055,1777914084000,-158.0,0.00023,2]
[421580052,1777914084000,-153.79,0.00022877,2]
[421580050,1777914084000,-150.0,0.00022531,2]
[421580054,1777914084000,-448.0,0.00023,2]
[421580053,1777914084000,-155.0,0.00023,2]
[421580047,1777914084000,-181.71316409,0.00022407,2]
[421580051,1777914084000,-500.0,0.00022747,2]
[421580049,1777914084000,-181.71316409,0.00022407,2]
[421580048,1777914084000,-181.71316409,0.00022407,2]
[421580045,1777914084000,-292.8,0.00022353,2]
[421580044,1777914084000,-200.0,0.00022085,2]
[421580040,1777914084000,-158.0,0.00022,2]
[421580042,1777914084000,-469.0,0.00022,2]
[421580043,1777914084000,-210.33,0.00022031,2]
[421580046,1777914084000,-2500.0,0.00022369,2]
[421580041,1777914084000,-168.0,0.00022,2]
[421580073,1777914085000,-150.0,0.00024301,2]
[421580070,1777914085000,-469.0,0.00024,2]
[421580074,1777914085000,-157.12574669,0.00024301,2]
[421580078,1777914085000,-500.0,0.00024301,2]
[421580075,1777914085000,-500.0,0.00024301,2]
[421580076,1777914085000,-500.0,0.00024301,2]
[421580071,1777914085000,-150.0,0.00024301,2]
[421580072,1777914085000,-190.0,0.00024301,2]
[421580068,1777914085000,-448.0,0.00024,2]
[421580058,1777914085000,-500.0,0.00023046,2]
[421580069,1777914085000,-168.0,0.00024,2]
[421580066,1777914085000,-507.55151922,0.00023046,2]
[421580065,1777914085000,-500.0,0.00023046,2]
[421580062,1777914085000,-500.0,0.00023046,2]
[421580064,1777914085000,-500.0,0.00023046,2]
[421580063,1777914085000,-500.0,0.00023046,2]
[421580061,1777914085000,-500.0,0.00023046,2]
[421580060,1777914085000,-500.0,0.00023046,2]
[421580077,1777914085000,-500.0,0.00024301,2]
[421580059,1777914085000,-500.0,0.00023046,2]
[421580067,1777914085000,-155.0,0.00024,2]
[421580079,1777914085000,-151.19868981,0.00024301,2]
[421580087,1777914085000,-150.0,0.00024301,2]
[421580081,1777914085000,-500.0,0.00024301,2]
[421580102,1777914085000,-472.95151982,0.00025,2]
[421580099,1777914085000,-464.0,0.00025,2]
[421580096,1777914085000,-228.07,0.00024658,2]
[421580098,1777914085000,-167.0,0.00025,2]
[421580101,1777914085000,-3000.0,0.00025,30]
[421580100,1777914085000,-170.25459908,0.00025,2]
[421580097,1777914085000,-199.0,0.00025,2]
[421580095,1777914085000,-1000.0,0.00024658,2]
[421580080,1777914085000,-500.0,0.00024301,2]
[421580093,1777914085000,-292.8,0.00024324,2]
[421580094,1777914085000,-500.0,0.00024657,2]
[421580092,1777914085000,-150.0,0.00024301,2]
[421580090,1777914085000,-150.0,0.00024301,2]
[421580089,1777914085000,-150.0,0.00024301,2]
[421580088,1777914085000,-204.70864528,0.00024301,2]
[421580086,1777914085000,-483.61529848,0.00024301,2]
[421580084,1777914085000,-500.0,0.00024301,2]
[421580083,1777914085000,-500.0,0.00024301,2]
[421580085,1777914085000,-500.0,0.00024301,2]
[421580082,1777914085000,-500.0,0.00024301,2]
[421580091,1777914085000,-286.94776845,0.00024301,2]
[421580103,1777914089000,402.0,0.00020346,2]
[421580104,1777914124000,2500.0,0.00027696,120]
[421580105,1777914132000,170.8,0.00024324,2]
[421580106,1777914132000,170.8,0.00022353,2]
[421580109,1777914132000,170.8,0.0001841,2]
[421580108,1777914132000,170.8,0.00016438,2]
[421580107,1777914132000,170.8,0.00020381,2]
[421580110,1777914189000,566.82172805,0.00030136,120]
[421580111,1777914234000,-500.0,0.00015148,2]
[421580112,1777914234000,-181.71316409,0.00022407,2]
[421580113,1777914234000,-181.71316409,0.00022407,2]
[421580114,1777914234000,-181.71316409,0.00022407,2]
[421580115,1777914234000,-402.0,0.00023604,2]
[421580116,1777914234000,-199.8354,0.00023604,2]
[421580118,1777914234000,-206923.7937451,0.00023605,2]
[421580120,1777914234000,-154.0,0.00025178,2]
[421580119,1777914234000,-232.0,0.00025178,2]
[421580121,1777914234000,-402.0,0.00025179,2]
[421580122,1777914234000,-405.0,0.0002518,2]
[421580123,1777914234000,-408.0,0.00025185,2]
[421580125,1777914234000,-402.0,0.00025231,2]
[421580117,1777914234000,-2317.31426788,0.00023604,2]
[421580126,1777914234000,-398.0,0.00025331,2]
[421580124,1777914234000,-411.0,0.00025197,2]
[421580138,1777914234000,-160.0,0.00027,7]
[421580137,1777914234000,-175.0,0.00027,7]
[421580136,1777914234000,-500.0,0.00026923,2]
[421580135,1777914234000,-262.232,0.00026367,13]
[421580133,1777914234000,-170.8,0.00026296,2]
[421580134,1777914234000,-3248.938,0.00026367,13]
[421580130,1777914234000,-300.0,0.00026,2]
[421580131,1777914234000,-2000.0,0.00026001,2]
[421580128,1777914234000,-398.0,0.00025618,2]
[421580132,1777914234000,-500.0,0.00026139,2]
[421580129,1777914234000,-5000.0,0.00025852,2]
[421580127,1777914234000,-162.48539177,0.00025616,2]
[421580150,1777914235000,-176.58831914,0.00027813,2]
[421580154,1777914235000,-156.244,0.00027899,2]
[421580153,1777914235000,-1000.0,0.00027899,2]
[421580151,1777914235000,-260.72729887,0.0002789,2]
[421580152,1777914235000,-441.24,0.0002789,10]
[421580148,1777914235000,-2500.0,0.000278,2]
[421580155,1777914235000,-200.0,0.00027899,2]
[421580149,1777914235000,-3092.32073855,0.000278,2]
[421580142,1777914235000,-367.7,0.00027397,10]
[421580147,1777914235000,-501.40628083,0.00027731,15]
[421580145,1777914235000,-3819.0,0.000274,2]
[421580144,1777914235000,-500.0,0.000274,7]
[421580143,1777914235000,-306.42,0.00027397,10]
[421580141,1777914235000,-228.07,0.00027397,2]
[421580140,1777914235000,-507.0,0.00027137,2]
[421580139,1777914235000,-836.0,0.00027123,2]
[421580156,1777914235000,-500.0,0.00027899,2]
[421580146,1777914235000,-175.0,0.00027671,14]
[421580157,1777914235000,-500.0,0.00027899,2]
[421580166,1777914235000,-500.0,0.00027899,2]
[421580160,1777914235000,-500.0,0.00027899,2]
[421580178,1777914235000,-500.0,0.00027899,2]
[421580158,1777914235000,-343.27480172,0.00027899,2]
[421580175,1777914235000,-500.0,0.00027899,2]
[421580176,1777914235000,-500.0,0.00027899,2]
[421580174,1777914235000,-500.0,0.00027899,2]
[421580173,1777914235000,-500.0,0.00027899,2]
[421580172,1777914235000,-500.0,0.00027899,2]
[421580171,1777914235000,-500.0,0.00027899,2]
[421580168,1777914235000,-500.0,0.00027899,2]
[421580177,1777914235000,-500.0,0.00027899,2]
[421580169,1777914235000,-500.0,0.00027899,2]
[421580167,1777914235000,-500.0,0.00027899,2]
[421580163,1777914235000,-500.0,0.00027899,2]
[421580165,1777914235000,-500.0,0.00027899,2]
[421580164,1777914235000,-500.0,0.00027899,2]
[421580161,1777914235000,-500.0,0.00027899,2]
[421580162,1777914235000,-500.0,0.00027899,2]
[421580159,1777914235000,-500.0,0.00027899,2]
[421580170,1777914235000,-500.0,0.00027899,2]
[421580194,1777914236000,-500.0,0.00027899,2]
[421580190,1777914236000,-346.28567809,0.00027899,2]
[421580192,1777914236000,-500.0,0.00027899,2]
[421580191,1777914236000,-500.0,0.00027899,2]
[421580189,1777914236000,-500.0,0.00027899,2]
[421580187,1777914236000,-500.0,0.00027899,2]
[421580188,1777914236000,-500.0,0.00027899,2]
[421580183,1777914236000,-500.0,0.00027899,2]
[421580184,1777914236000,-500.0,0.00027899,2]
[421580185,1777914236000,-500.0,0.00027899,2]
[421580182,1777914236000,-500.0,0.00027899,2]
[421580180,1777914236000,-500.0,0.00027899,2]
[421580181,1777914236000,-500.0,0.00027899,2]
[421580179,1777914236000,-500.0,0.00027899,2]
[421580193,1777914236000,-500.0,0.00027899,2]
[421580186,1777914236000,-500.0,0.00027899,2]
[421580195,1777914236000,-500.0,0.00027899,2]
[421580212,1777914236000,-500.0,0.00027899,2]
[421580197,1777914236000,-500.0,0.00027899,2]
[421580196,1777914236000,-500.0,0.00027899,2]
[421580214,1777914236000,-500.0,0.00027899,2]
[421580211,1777914236000,-500.0,0.00027899,2]
[421580210,1777914236000,-500.0,0.00027899,2]
[421580209,1777914236000,-500.0,0.00027899,2]
[421580207,1777914236000,-500.0,0.00027899,2]
[421580208,1777914236000,-650.0,0.00027899,2]
[421580205,1777914236000,-500.0,0.00027899,2]
[421580213,1777914236000,-500.0,0.00027899,2]
[421580204,1777914236000,-500.0,0.00027899,2]
[421580203,1777914236000,-500.0,0.00027899,2]
[421580202,1777914236000,-500.0,0.00027899,2]
[421580201,1777914236000,-500.0,0.00027899,2]
[421580199,1777914236000,-500.0,0.00027899,2]
[421580200,1777914236000,-279.35271897,0.00027899,2]
[421580198,1777914236000,-500.0,0.00027899,2]
[421580206,1777914236000,-500.0,0.00027899,2]
[421580223,1777914237000,-500.0,0.00027899,2]
[421580224,1777914237000,-500.0,0.00027899,2]
[421580225,1777914237000,-500.0,0.00027899,2]
[421580222,1777914237000,-500.0,0.00027899,2]
[421580221,1777914237000,-500.0,0.00027899,2]
[421580217,1777914237000,-615.73156017,0.00027899,2]
[421580219,1777914237000,-500.0,0.00027899,2]
[421580216,1777914237000,-500.0,0.00027899,2]
[421580218,1777914237000,-500.0,0.00027899,2]
[421580215,1777914237000,-500.0,0.00027899,2]
[421580226,1777914237000,-500.0,0.00027899,2]
[421580220,1777914237000,-500.0,0.00027899,2]
[421580228,1777914237000,-500.0,0.00027899,2]
[421580229,1777914237000,-500.0,0.00027899,2]
[421580230,1777914237000,-252.35155239,0.00027899,2]
[421580227,1777914237000,-500.0,0.00027899,2]
[421580239,1777914237000,-461.29225568,0.000279,2]
[421580236,1777914237000,-500.0,0.00027899,2]
[421580240,1777914237000,-2000.0,0.000279,2]
[421580238,1777914237000,-1242.0,0.000279,5]
[421580241,1777914237000,-64164.45649857,0.000279,2]
[421580233,1777914237000,-500.0,0.00027899,2]
[421580235,1777914237000,-500.0,0.00027899,2]
[421580234,1777914237000,-500.0,0.00027899,2]
[421580232,1777914237000,-500.0,0.00027899,2]
[421580231,1777914237000,-500.0,0.00027899,2]
[421580237,1777914237000,-500.0,0.00027899,2]
[421580252,1777914339000,-200.0,0.00027196,2]
[421580243,1777914339000,-169.28,0.00021142,2]
[421580245,1777914339000,-150.0,0.000252,2]
[421580246,1777914339000,-150.0,0.000252,2]
[421580248,1777914339000,-150.0,0.00026,4]
[421580247,1777914339000,-150.0,0.000256,4]
[421580244,1777914339000,-150.0,0.000252,2]
[421580249,1777914339000,-150.0,0.000264,4]
[421580251,1777914339000,-506.0,0.00027137,2]
[421580250,1777914339000,-150.0,0.000268,4]
[421580263,1777914339000,-300.0,0.00027798,2]
[421580253,1777914339000,-150.0,0.000272,4]
[421580264,1777914339000,-2126.8734,0.00027799,2]
[421580261,1777914339000,-221.65227949,0.00027726,30]
[421580262,1777914339000,-1200.0,0.00027798,2]
[421580260,1777914339000,-500.0,0.00027726,30]
[421580255,1777914339000,-500.0,0.00027726,30]
[421580258,1777914339000,-500.0,0.00027726,30]
[421580256,1777914339000,-500.0,0.00027726,30]
[421580254,1777914339000,-150.0,0.000276,7]
[421580257,1777914339000,-500.0,0.00027726,30]
[421580259,1777914339000,-500.0,0.00027726,30]
[421580265,1777914340000,-41926.19432051,0.00027799,2]
[421580268,1777914412000,-5529.0,0.00026,5]
[421580267,1777914412000,-500.0,0.00025078,2]
[421580266,1777914412000,-191.11339065,0.00022407,2]
[421580271,1777914413000,-177.33,0.0002769,10]
[421580270,1777914413000,-200.0,0.00027313,2]
[421580272,1777914413000,-153232.53660935,0.000277,2]
[421580269,1777914413000,-170.02,0.00027279,2]
[421580273,1777914449000,321.309336,0.00028714,120]
[421580274,1777914492000,160.654668,0.00028714,120]
[421580280,1777914553000,-224.87017941,0.00016438,2]
[421580276,1777914553000,-556.9,0.00016438,2]
[421580278,1777914553000,-150.0,0.00016438,2]
[421580279,1777914553000,-152.0,0.00016438,2]
[421580281,1777914553000,-556.9,0.0001841,2]
[421580277,1777914553000,-151.0,0.00016438,2]
[421580285,1777914553000,-556.9,0.00022353,2]
[421580282,1777914553000,-556.9,0.00020381,2]
[421580284,1777914553000,-1023.09,0.00020951,2]
[421580283,1777914553000,-1057.71,0.00020951,2]
[421580286,1777914553000,-300.0,0.00022561,2]
[421580288,1777914553000,-122.47178259,0.00022562,2]
[421580287,1777914553000,-300.0,0.00022561,2]
[421580305,1777914632000,-4264.76,0.00026335,2]
[421580306,1777914632000,-4426.87,0.00026402,2]
[421580312,1777914632000,-500.0,0.00027138,2]
[421580311,1777914632000,-150.0,0.00027,7]
[421580318,1777914632000,-3176.88667009,0.000276,2]
[421580319,1777914632000,-2500.0,0.000276,2]
[421580320,1777914632000,-3176.88667009,0.00027633,2]
[421580302,1777914632000,-556.9,0.00026296,2]
[421580321,1777914632000,-1213.5360548,0.0002766,2]
[421580322,1777914632000,-3176.88667009,0.00027667,2]
[421580323,1777914632000,-150.0,0.00027671,14]
[421580313,1777914632000,-525.3,0.00027397,2]
[421580304,1777914632000,-300.0,0.00026334,2]
[421580310,1777914632000,-160.0,0.00027,7]
[421580300,1777914632000,-252.0,0.000252,5]
[421580309,1777914632000,-3068.27,0.00026863,2]
[421580308,1777914632000,-645.7,0.00026611,2]
[421580307,1777914632000,-2000.0,0.00026473,2]
[421580301,1777914632000,-409.0,0.00025656,2]
[421580297,1777914632000,-404.0,0.00023555,2]
[421580298,1777914632000,-556.9,0.00024324,2]
[421580299,1777914632000,-278.0,0.00024503,2]
[421580296,1777914632000,-881.97,0.00022562,2]
[421580295,1777914632000,-789.34821741,0.00022562,2]
[421580293,1777914632000,-195.14205916,0.00022407,2]
[421580317,1777914632000,-700.0,0.000276,10]
[421580303,1777914632000,-1151.0,0.00026334,2]
[421580294,1777914632000,-195.14205914,0.00022407,2]
[421580314,1777914632000,-300.0,0.00027397,2]
[421580315,1777914632000,-200.0,0.000274,10]
[421580352,1777914632000,-954.0,0.000277,2]
[421580351,1777914632000,-405.4295655,0.000277,2]
[421580350,1777914632000,-2361.535807,0.000277,2]
[421580345,1777914632000,-500.0,0.00027699,2]
[421580348,1777914632000,-200.0,0.00027699,2]
[421580346,1777914632000,-500.0,0.00027699,2]
[421580343,1777914632000,-528.03906138,0.00027699,2]
[421580349,1777914632000,-82590.90295766,0.000277,2]
[421580347,1777914632000,-599.62856781,0.00027699,2]
[421580344,1777914632000,-500.0,0.00027699,2]
[421580341,1777914632000,-500.0,0.00027699,2]
[421580342,1777914632000,-500.0,0.00027699,2]
[421580340,1777914632000,-500.0,0.00027699,2]
[421580338,1777914632000,-631.01209212,0.00027699,2]
[421580333,1777914632000,-500.0,0.00027699,2]
[421580332,1777914632000,-234.46844459,0.00027699,2]
[421580330,1777914632000,-151.0,0.00027697,7]
[421580331,1777914632000,-154.76149843,0.00027697,7]
[421580329,1777914632000,-2484.62,0.0002769,10]
[421580324,1777914632000,-150.0,0.00027671,14]
[421580335,1777914632000,-500.0,0.00027699,2]
[421580327,1777914632000,-2981.55,0.0002769,10]
[421580337,1777914632000,-500.0,0.00027699,2]
[421580336,1777914632000,-195.54690328,0.00027699,2]
[421580325,1777914632000,-300.0,0.0002769,2]
[421580339,1777914632000,-290.2923612,0.00027699,2]
[421580316,1777914632000,-500.0,0.000275,10]
[421580361,1777914638000,-2547.17039557,0.000277,2]
[421580360,1777914638000,-195.14205914,0.00022407,2]
[421580505,1777914640000,-280.53699013,0.00026932,2]
[421580507,1777914641000,-2070.52,0.0002769,10]
[421580533,1777914641000,-150.0,0.00027726,30]
[421580530,1777914641000,-150.0,0.00027726,30]
[421580531,1777914641000,-150.0,0.00027726,30]
[421580529,1777914641000,-150.0,0.00027726,30]
[421580527,1777914641000,-150.0,0.00027726,30]
[421580532,1777914641000,-150.0,0.00027726,30]
[421580528,1777914641000,-150.0,0.00027726,30]
[421580526,1777914641000,-150.0,0.00027726,30]
[421580523,1777914641000,-150.0,0.00027726,30]
[421580525,1777914641000,-150.0,0.00027726,30]
[421580524,1777914641000,-150.0,0.00027726,30]
[421580522,1777914641000,-150.0,0.00027726,30]
[421580506,1777914641000,-4009.71300987,0.00026932,2]
[421580520,1777914641000,-150.0,0.00027726,30]
[421580521,1777914641000,-150.0,0.00027726,30]
[421580515,1777914641000,-461.06225528,0.00027726,30]
[421580513,1777914641000,-500.0,0.00027726,30]
[421580517,1777914641000,-150.0,0.00027726,30]
[421580516,1777914641000,-150.0,0.00027726,30]
[421580511,1777914641000,-3176.88667009,0.000277,2]
[421580534,1777914641000,-150.0,0.00027726,30]
[421580514,1777914641000,-500.0,0.00027726,30]
[421580509,1777914641000,-1000.0,0.000277,10]
[421580518,1777914641000,-150.0,0.00027726,30]
[421580510,1777914641000,-543.29483481,0.000277,2]
[421580508,1777914641000,-1249856.62426492,0.000277,2]
[421580519,1777914641000,-150.0,0.00027726,30]
[421580535,1777914641000,-150.0,0.00027726,30]
[421580512,1777914641000,-500.0,0.00027726,30]
[421580541,1777914641000,-13506.86557949,0.00027799,2]
[421580564,1777914641000,-568.06015006,0.00027899,2]
[421580559,1777914641000,-151.0,0.00027883,2]
[421580562,1777914641000,-150.0,0.00027899,20]
[421580561,1777914641000,-161.90805134,0.00027883,2]
[421580536,1777914641000,-150.0,0.00027726,30]
[421580563,1777914641000,-500.0,0.00027899,2]
[421580560,1777914641000,-151.0,0.00027883,2]
[421580557,1777914641000,-151.0,0.00027883,2]
[421580556,1777914641000,-151.0,0.00027883,2]
[421580553,1777914641000,-151.0,0.00027883,2]
[421580555,1777914641000,-151.0,0.00027883,2]
[421580554,1777914641000,-151.0,0.00027883,2]
[421580552,1777914641000,-200.0,0.00027883,2]
[421580548,1777914641000,-3176.88667009,0.00027833,2]
[421580565,1777914641000,-633480.79203411,0.000279,2]
[421580550,1777914641000,-3176.88667009,0.00027867,2]
[421580558,1777914641000,-151.0,0.00027883,2]
[421580549,1777914641000,-874.0,0.00027866,5]
[421580547,1777914641000,-250.0,0.000278,2]
[421580546,1777914641000,-3176.88667009,0.000278,2]
[421580545,1777914641000,-235.45109218,0.000278,2]
[421580543,1777914641000,-5267.4239,0.000278,2]
[421580544,1777914641000,-1200.0,0.000278,10]
[421580537,1777914641000,-157.81157847,0.00027726,30]
[421580542,1777914641000,-2000.0,0.000278,2]
[421580540,1777914641000,-3176.88667009,0.00027767,2]
[421580538,1777914641000,-3176.88667009,0.00027733,2]
[421580539,1777914641000,-162.48539177,0.00027737,2]